fUSD/lending_fUSD_20251222
["ID","MTS","AMOUNT","RATE_DAILY","PERIOD"]
[399477660,1766409039303,-500.0,0.00013731,2]
[399477662,1766409039313,-250.0,0.00013731,2]
[399477664,1766409039323,-500.0,0.00013731,2]
[399477667,1766409039332,-250.0,0.00013731,2]
[399477669,1766409039342,-250.0,0.00013731,2]
[399477671,1766409039352,-500.0,0.00013731,2]
[399477673,1766409039361,-500.0,0.00013731,2]
[399477675,1766409039371,-500.0,0.00013731,2]
[399477677,1766409039381,-250.0,0.00013731,2]
[399477679,1766409039390,-250.0,0.00013731,2]
[399477681,1766409039400,-500.0,0.00013731,2]
[399477683,1766409039410,-500.0,0.00013731,2]
[399477685,1766409039419,-250.0,0.00013731,2]
[399477687,1766409039429,-250.0,0.00013731,2]
[399477689,1766409039438,-500.0,0.00013731,2]
[399477691,1766409039447,-500.0,0.00013731,2]
[399477693,1766409039457,-250.0,0.00013731,2]
[399477695,1766409039468,-250.0,0.00013731,2]
[399477697,1766409039477,-500.0,0.00013731,2]
[399477699,1766409039488,-500.0,0.00013731,2]
[399477701,1766409039497,-250.0,0.00013731,2]
[399477704,1766409039507,-250.0,0.00013731,2]
[399477705,1766409039516,-500.0,0.00013731,2]
[399477708,1766409039526,-500.0,0.00013731,2]
[399477710,1766409039535,-250.0,0.00013731,2]
[399477712,1766409039545,-250.0,0.00013731,2]
[399477714,1766409039554,-500.0,0.00013731,2]
[399477716,1766409039563,-250.0,0.00013731,2]
[399477718,1766409039573,-250.0,0.00013731,2]
[399477720,1766409039582,-500.0,0.00013731,2]
[399477722,1766409039592,-250.0,0.00013731,2]
[399477723,1766409039601,-250.0,0.00013731,2]
[399477724,1766409039610,-649.2640412,0.00013731,2]
[399477725,1766409039620,-250.0,0.00013731,2]
[399477726,1766409039629,-348.97018415,0.00013731,2]
[399477727,1766409039639,-220.0,0.00013731,2]
[399477728,1766409039648,-250.0,0.00013731,2]
[399477729,1766409039658,-220.0,0.00013731,2]
[399477730,1766409039677,-220.0,0.00013731,2]
[399477731,1766409039695,-220.0,0.00013731,2]
[399477732,1766409039710,-250.0,0.00013731,2]
[399477733,1766409039720,-250.0,0.00013731,2]
[399477735,1766409039730,-250.0,0.00013731,2]
[399477737,1766409039740,-220.0,0.00013731,2]
[399477739,1766409039750,-250.0,0.00013731,2]
[399477740,1766409039760,-250.0,0.00013731,2]
[399477741,1766409039770,-220.65667203,0.00013731,2]
[399477742,1766409039780,-250.0,0.00013731,2]
[399477743,1766409039789,-250.0,0.00013731,2]
[399477744,1766409039799,-773.52492997,0.00013731,2]
[399477745,1766409039809,-250.0,0.00013731,2]
[399477747,1766409039819,-250.0,0.00013731,2]
[399477749,1766409039829,-578.20924308,0.00013731,2]
[399477750,1766409039839,-250.0,0.00013731,2]
[399477751,1766409039849,-250.0,0.00013731,2]
[399477752,1766409039859,-250.0,0.00013731,2]
[399477753,1766409039868,-250.0,0.00013731,2]
[399477754,1766409039878,-250.0,0.00013731,2]
[399477755,1766409039888,-250.0,0.00013731,2]
[399477756,1766409039897,-250.0,0.00013731,2]
[399477757,1766409039907,-250.0,0.00013731,2]
[399477758,1766409039917,-500.0,0.00013731,2]
[399477759,1766409039926,-250.0,0.00013731,2]
[399477760,1766409039936,-250.0,0.00013731,2]
[399477761,1766409039945,-500.0,0.00013731,2]
[399477762,1766409039955,-1451.69716232,0.00013731,2]
[399477763,1766409039972,-81.40835178,0.00013731,2]
[399477764,1766409039982,-250.0,0.00013731,2]
[399477765,1766409039991,-250.0,0.00013731,2]
[399477766,1766409040001,-500.0,0.00013731,2]
[399477767,1766409040011,-250.0,0.00013731,2]
[399477768,1766409040021,-250.0,0.00013731,2]
[399477770,1766409040031,-500.0,0.00013731,2]
[399477771,1766409040040,-250.0,0.00013731,2]
[399477772,1766409040053,-403.39612427,0.00013731,2]
[399477773,1766409040065,-96.60387573,0.00013731,2]
[399477774,1766409040074,-250.0,0.00013731,2]
[399477775,1766409040084,-500.0,0.00013731,2]
[399477776,1766409040093,-250.0,0.00013731,2]
[399477777,1766409040104,-250.0,0.00013731,2]
[399477778,1766409040113,-500.0,0.00013731,2]
[399477779,1766409040123,-250.0,0.00013731,2]
[399477780,1766409040132,-500.0,0.00013731,2]
[399477781,1766409040141,-250.0,0.00013731,2]
[399477782,1766409040151,-500.0,0.00013731,2]
[399477783,1766409040161,-250.0,0.00013731,2]
[399477784,1766409040170,-500.0,0.00013731,2]
[399477785,1766409040180,-250.0,0.00013731,2]
[399477786,1766409040189,-500.0,0.00013731,2]
[399477787,1766409040199,-200.0,0.00013731,2]
[399477788,1766409040209,-620.0,0.00013731,2]
[399477789,1766409040219,-250.0,0.00013731,2]
[399477790,1766409040228,-500.0,0.00013731,2]
[399477791,1766409040238,-207.4,0.00013731,2]
[399477792,1766409040248,-250.0,0.00013731,2]
[399477793,1766409040258,-500.0,0.00013731,2]
[399477794,1766409040268,-215.0738,0.00013731,2]
[399477795,1766409040278,-250.0,0.00013731,2]
[399477796,1766409040288,-250.0,0.00013731,2]
[399477797,1766409040298,-223.0315306,0.00013731,2]
[399477798,1766409040308,-250.0,0.00013731,2]
[399477799,1766409040318,-231.28369723,0.00013731,2]
[399477800,1766409040328,-250.0,0.00013731,2]
[399477801,1766409040338,-239.84119403,0.00013731,2]
[399477802,1766409040347,-250.0,0.00013731,2]
[399477803,1766409040357,-248.71531821,0.00013731,2]
[399477804,1766409040367,-257.91778498,0.00013731,2]
[399477805,1766409040376,-250.0,0.00013731,2]
[399477806,1766409040386,-151.0,0.00013731,2]
[399477807,1766409040396,-500.0,0.00013731,2]
[399477808,1766409040406,-500.0,0.00013731,2]
[399477809,1766409040416,-500.0,0.00013731,2]
[399477810,1766409040425,-500.0,0.00013731,2]
[399477811,1766409040435,-500.0,0.00013731,2]
[399477812,1766409040444,-500.0,0.00013731,2]
[399477814,1766409040454,-500.0,0.00013731,2]
[399477816,1766409040463,-500.0,0.00013731,2]
[399477818,1766409040472,-500.0,0.00013731,2]
[399477819,1766409040482,-500.0,0.00013731,2]
[399477820,1766409040493,-500.0,0.00013731,2]
[399477821,1766409040503,-500.0,0.00013731,2]
[399477822,1766409040512,-500.0,0.00013731,2]
[399477823,1766409040522,-590.29961711,0.00013754,2]
[399477825,1766409040531,-151.0,0.00013761,2]
[399477827,1766409040541,-315.5348369,0.00013764,2]
[399477828,1766409040551,-18849.5023388,0.00013764,2]
[399477829,1766409040568,-660.1508,0.00013764,2]
[399477830,1766409040833,-981.396159,0.00013764,2]
[399477831,1766409040844,-267.990723,0.00013764,2]
[399477832,1766409040860,-2705.95574,0.00013764,2]
[399477833,1766409040872,-1810.4904945,0.00013764,2]
[399477834,1766409040883,-7890.4930864,0.00013764,2]
[399477835,1766409040892,-256256.9343947,0.00013764,2]
[399477836,1766409040902,-1162.7181789,0.00013764,2]
[399477837,1766409040912,-481.25,0.00013836,2]
[399477838,1766409040922,-481.25,0.00013836,2]
[399477839,1766409040932,-481.25,0.00013836,2]
[399477840,1766409040942,-481.25,0.00013836,2]
[399477841,1766409040953,-481.25,0.00013836,2]
[399477842,1766409040962,-962.5,0.00013836,2]
[399477843,1766409040972,-219.49,0.00013836,2]
[399477844,1766409040981,-4759.87120374,0.00013837,2]
[399477845,1766409040991,-197.68289653,0.00013871,2]
[399477846,1766409041000,-249.45942711,0.00013885,2]
[399477847,1766409041009,-942.87374071,0.00013892,2]
[399477848,1766409041019,-481.25,0.000139,2]
[399477849,1766409041029,-200.0,0.00013901,2]
[399477850,1766409041039,-500.0,0.00013901,2]
[399477851,1766409041050,-200.0,0.00013901,2]
[399477852,1766409041059,-823.04,0.00013901,2]
[399477853,1766409041069,-153.51,0.00013973,2]
[399477854,1766409041081,-150.0,0.00013973,2]
[399477855,1766409041091,-150.0,0.00013973,2]
[399477856,1766409041413,-150.0,0.00013973,2]
[399477857,1766409041471,-464.76,0.00013973,2]
[399477858,1766409041481,-150.0,0.00013973,2]
[399477859,1766409041490,-150.0,0.00013973,2]
[399477860,1766409041500,-464.76,0.00013973,2]
[399477861,1766409041509,-150.0,0.00013973,2]
[399477862,1766409041518,-150.0,0.00013973,2]
[399477863,1766409041527,-150.0,0.00013973,2]
[399477864,1766409041537,-464.76,0.00013973,2]
[399477865,1766409041546,-150.0,0.00013973,2]
[399477866,1766409041555,-464.76,0.00013973,2]
[399477867,1766409041564,-150.0,0.00013973,2]
[399477868,1766409041573,-464.76,0.00013973,2]
[399477869,1766409041582,-150.0,0.00013973,2]
[399477870,1766409041591,-464.76,0.00013973,2]
[399477871,1766409041600,-150.0,0.00013973,2]
[399477872,1766409041609,-464.76,0.00013973,2]
[399477873,1766409041618,-150.0,0.00013973,2]
[399477874,1766409041627,-464.76,0.00013973,2]
[399477875,1766409041636,-150.0,0.00013973,2]
[399477876,1766409041645,-150.62,0.00013973,2]
[399477877,1766409041653,-464.76,0.00013973,2]
[399477878,1766409041662,-150.0,0.00013973,2]
[399477879,1766409041672,-464.76,0.00013973,2]
[399477880,1766409041682,-250.98,0.00013973,2]
[399477881,1766409041695,-150.0,0.00013973,2]
[399477882,1766409041705,-397.19,0.00013973,2]
[399477883,1766409041714,-464.76,0.00013973,2]
[399477884,1766409041724,-464.76,0.00013973,2]
[399477885,1766409041734,-178.47,0.00013973,2]
[399477886,1766409041743,-464.76,0.00013973,2]
[399477887,1766409041753,-178.47,0.00013973,2]
[399477888,1766409041770,-356.91,0.00013973,2]
[399477889,1766409041779,-9434.27662128,0.00014086,2]
[399477890,1766409041789,-1849.46306376,0.00014119,2]
[399477891,1766409041799,-247.17722841,0.00014119,2]
[399477892,1766409041808,-7000.0,0.00014119,2]
[399477893,1766409041817,-198.75,0.00014136,2]
[399477894,1766409041829,-200.0,0.00014137,2]
[399477895,1766409041838,-3966.9773441,0.00014153,2]
[399477896,1766409041847,-823.06,0.00014175,2]
[399477897,1766409041856,-1000.0,0.000142,2]
[399477898,1766409041865,-166.68,0.00014236,2]
[399477899,1766409041875,-166.66,0.00014247,2]
[399477900,1766409041884,-201.93286099,0.00014279,2]
[399477901,1766409041894,-151.0,0.00014279,2]
[399477902,1766409041903,-201.93286099,0.00014279,2]
[399477903,1766409041912,-553.64373807,0.00014279,2]
[399477904,1766409041921,-151.0,0.00014279,2]
[399477905,1766409041930,-500.0,0.000143,2]
[399477906,1766409041939,-168.65037374,0.000143,2]
[399477907,1766409041949,-500.0,0.000143,2]
[399477908,1766409041958,-500.0,0.000143,2]
[399477909,1766409041967,-500.0,0.000143,2]
[399477910,1766409041976,-500.0,0.000143,2]
[399477911,1766409041985,-500.0,0.000143,2]
[399477912,1766409041994,-500.0,0.000143,2]
[399477913,1766409042004,-166.66,0.00014304,2]
[399477914,1766409042014,-500.0,0.00014335,2]
[399477915,1766409042026,-166.66,0.00014384,2]
[399477916,1766409042036,-5625.0,0.00014403,2]
[399477917,1766409042046,-7000.0,0.0001441,2]
[399477918,1766409042055,-659.33,0.00014411,2]
[399477919,1766409042064,-659.33,0.00014411,2]
[399477920,1766409042074,-1318.42,0.00014411,2]
[399477921,1766409042083,-659.33,0.00014411,2]
[399477922,1766409042092,-659.33,0.00014411,2]
[399477923,1766409042101,-659.33,0.00014411,2]
[399477924,1766409042110,-200.0,0.00014449,2]
[399477925,1766409042119,-500.0,0.00014449,2]
[399477926,1766409042128,-200.0,0.00014449,2]
[399477927,1766409042137,-249.45942711,0.00014488,2]
[399477928,1766409042146,-1000.0,0.000145,2]
[399477929,1766409042155,-198.75,0.00014518,2]
[399477930,1766409042164,-9434.27662128,0.00014555,2]
[399477931,1766409042173,-166.29,0.0001461,2]
[399477932,1766409042182,-3966.9773441,0.00014611,2]
[399477933,1766409042191,-942.87374071,0.00014705,2]
[399477934,1766409042199,-4410.7037517,0.00014734,2]
[399477935,1766409042208,-166.66,0.00014746,2]
[399477936,1766409042217,-659.33,0.00014795,2]
[399477937,1766409042226,-659.33,0.00014795,2]
[399477938,1766409042235,-659.33,0.00014795,2]
[399477939,1766409042244,-659.33,0.00014795,2]
[399477940,1766409042253,-659.33,0.00014795,2]
[399477941,1766409042262,-659.33,0.00014795,2]
[399477942,1766409042272,-1318.79,0.00014795,2]
[399477943,1766409042281,-659.33,0.00014795,2]
[399477944,1766409042290,-659.33,0.00014795,2]
[399477945,1766409042299,-659.33,0.00014795,2]
[399477946,1766409042309,-659.33,0.00014795,2]
[399477947,1766409042318,-659.33,0.00014795,2]
[399477948,1766409042327,-659.33,0.00014795,2]
[399477949,1766409042337,-659.33,0.00014795,2]
[399477950,1766409042346,-178.47,0.00014795,2]
[399477951,1766409042355,-178.47,0.00014795,2]
[399477952,1766409042364,-359.68,0.00014795,2]
[399477953,1766409042373,-178.47,0.00014795,2]
[399477954,1766409042382,-178.47,0.00014795,2]
[399477955,1766409042391,-150.0,0.00014795,2]
[399477956,1766409042407,-300.0,0.00014795,2]
[399477957,1766409042421,-178.47,0.00014795,2]
[399477958,1766409042430,-554.01,0.00014795,2]
[399477959,1766409042439,-150.0,0.00014795,2]
[399477960,1766409042449,-554.01,0.00014795,2]
[399477961,1766409042458,-150.0,0.00014795,2]
[399477962,1766409042467,-178.47,0.00014795,2]
[399477963,1766409042476,-554.01,0.00014795,2]
[399477964,1766409042486,-150.0,0.00014795,2]
[399477965,1766409042495,-178.47,0.00014795,2]
[399477966,1766409042505,-554.01,0.00014795,2]
[399477967,1766409042514,-170.7,0.00014795,2]
[399477968,1766409042526,-150.0,0.00014795,2]
[399477969,1766409042535,-554.01,0.00014795,2]
[399477970,1766409042545,-178.47,0.00014795,2]
[399477971,1766409042554,-170.7,0.00014795,2]
[399477972,1766409042564,-150.0,0.00014795,2]
[399477973,1766409042574,-554.01,0.00014795,2]
[399477974,1766409042585,-170.7,0.00014795,2]
[399477975,1766409042596,-178.47,0.00014795,2]
[399477976,1766409042605,-178.47,0.00014795,2]
[399477977,1766409042615,-554.01,0.00014795,2]
[399477978,1766409042625,-170.7,0.00014795,2]
[399477979,1766409042636,-150.0,0.00014795,2]
[399477980,1766409042647,-554.01,0.00014795,2]
[399477981,1766409042658,-170.7,0.00014795,2]
[399477982,1766409042669,-150.0,0.00014795,2]
[399477983,1766409042678,-554.01,0.00014795,2]
[399477984,1766409042689,-178.47,0.00014795,2]
[399477985,1766409042703,-170.7,0.00014795,2]
[399477986,1766409042714,-150.0,0.00014795,2]
[399477987,1766409042723,-554.01,0.00014795,2]
[399477988,1766409042734,-170.7,0.00014795,2]
[399477989,1766409042743,-178.47,0.00014795,2]
[399477990,1766409042752,-554.01,0.00014795,2]
[399477991,1766409042764,-150.0,0.00014795,2]
[399477992,1766409042778,-170.7,0.00014795,2]
[399477993,1766409042787,-170.7,0.00014795,2]
[399477994,1766409042797,-178.47,0.00014795,2]
[399477995,1766409042807,-554.01,0.00014795,2]
[399477996,1766409042817,-150.0,0.00014795,2]
[399477997,1766409042827,-170.7,0.00014795,2]
[399477998,1766409042836,-170.7,0.00014795,2]
[399477999,1766409042846,-170.7,0.00014795,2]
[399478000,1766409042856,-554.01,0.00014795,2]
[399478001,1766409042865,-150.0,0.00014795,2]
[399478002,1766409042874,-178.47,0.00014795,2]
[399478003,1766409042884,-178.47,0.00014795,2]
[399478004,1766409042893,-554.01,0.00014795,2]
[399478005,1766409042902,-170.7,0.00014795,2]
[399478006,1766409042912,-150.0,0.00014795,2]
[399478007,1766409042921,-554.01,0.00014795,2]
[399478008,1766409042931,-178.47,0.00014795,2]
[399478009,1766409042941,-150.0,0.00014795,2]
[399478010,1766409042951,-554.01,0.00014795,2]
[399478011,1766409042961,-178.47,0.00014795,2]
[399478012,1766409042974,-170.7,0.00014795,2]
[399478013,1766409042988,-150.0,0.00014795,2]
[399478014,1766409042998,-554.01,0.00014795,2]
[399478015,1766409043008,-170.7,0.00014795,2]
[399478016,1766409043019,-178.41,0.00014795,2]
[399478017,1766409043029,-150.0,0.00014795,2]
[399478018,1766409043041,-554.01,0.00014795,2]
[399478019,1766409043057,-170.7,0.00014795,2]
[399478020,1766409043067,-150.0,0.00014795,2]
[399478021,1766409043077,-554.01,0.00014795,2]
[399478022,1766409043087,-170.7,0.00014795,2]
[399478023,1766409043098,-150.0,0.00014795,2]
[399478024,1766409043107,-554.01,0.00014795,2]
[399478025,1766409043117,-170.7,0.00014795,2]
[399478026,1766409043127,-150.0,0.00014795,2]
[399478027,1766409043137,-1000.0,0.000148,2]
[399478028,1766409043147,-209.40437684,0.00014827,2]
[399478029,1766409043158,-151.0,0.00014827,2]
[399478030,1766409043179,-209.40437684,0.00014827,2]
[399478031,1766409043198,-574.12855637,0.00014827,2]
[399478032,1766409043208,-151.0,0.00014827,2]
[399478033,1766409043218,-1000.0,0.00014848,2]
[399478034,1766409043229,-500.0,0.00014848,2]
[399478035,1766409043241,-1000.0,0.00014848,2]
[399478036,1766409043251,-433.0,0.00014851,2]
[399478037,1766409043261,-7000.0,0.0001491,2]
[399478038,1766409043272,-1600.0,0.0001495,2]
[399478039,1766409043282,-200.0,0.00014997,2]
[399478040,1766409043292,-500.0,0.00014997,2]
[399478041,1766409043303,-200.0,0.00014997,2]
[399478042,1766409043313,-1968.0,0.00015,2]
[399478043,1766409043324,-1000.0,0.00015,2]
[399478044,1766409043335,-9434.27662128,0.00015024,2]
[399478045,1766409043345,-150.0,0.00015068,2]
[399478046,1766409043355,-3966.9773441,0.00015068,2]
[399478047,1766409043364,-588.59,0.00015068,2]
[399478048,1766409043374,-215.50049,0.0001508,2]
[399478049,1766409043384,-215.50049,0.0001508,2]
[399478050,1766409043394,-215.50049,0.0001508,2]
[399478051,1766409043404,-215.50049,0.0001508,2]
[399478052,1766409043414,-249.45942711,0.00015091,2]
[399478053,1766409043424,-151.0,0.000151,2]
[399478054,1766409043433,-334.5472959,0.000151,2]
[399478055,1766409043443,-267.46074303,0.000151,2]
[399478056,1766409043453,-200.0,0.00015158,2]
[399478057,1766409043464,-200.0,0.00015158,2]
[399478058,1766409043474,-200.0,0.00015158,2]
[399478059,1766409043484,-200.0,0.00015159,2]
[399478060,1766409043495,-200.0,0.00015159,2]
[399478061,1766409043505,-200.0,0.00015159,2]
[399478062,1766409043515,-166.66,0.00015189,2]
[399478063,1766409043525,-1000.0,0.000152,2]
[399478064,1766409043535,-1000.0,0.000152,2]
[399478065,1766409043545,-1000.0,0.00015283,2]
[399478066,1766409043555,-150.0,0.00015288,2]
[399478067,1766409043565,-150.0,0.00015288,2]
[399478068,1766409043575,-150.0,0.00015288,2]
[399478069,1766409043585,-150.0,0.00015288,2]
[399478070,1766409043595,-178.51553078,0.00015288,2]
[399478071,1766409043604,-150.00000001,0.00015288,2]
[399478072,1766409043614,-150.0,0.00015288,2]
[399478073,1766409043624,-151.0,0.0001531,2]
[399478074,1766409043634,-194.343068,0.0001531,2]
[399478075,1766409043644,-3015.4,0.0001531,2]
[399478076,1766409043653,-150.99,0.0001531,2]
[399478077,1766409043663,-299.99,0.0001531,2]
[399478078,1766409043672,-9999.99,0.0001531,2]
[399478079,1766409043683,-150.99,0.0001531,2]
[399478080,1766409043695,-166.29,0.0001534,2]
[399478081,1766409043705,-217.15233878,0.00015375,2]
[399478082,1766409043714,-296.19638471,0.00015375,2]
[399478083,1766409043725,-217.15233878,0.00015375,2]
[399478084,1766409043735,-595.37131296,0.00015375,2]
[399478085,1766409043745,-151.0,0.00015375,2]
[399478086,1766409043755,-424.7441161,0.00015393,2]
[399478087,1766409043766,-500.0,0.00015396,2]
[399478088,1766409043777,-1580.20183557,0.00015396,2]
[399478089,1766409043787,-7000.0,0.0001541,2]
[399478090,1766409043796,-306.2017092,0.00015493,2]
[399478091,1766409043806,-9434.27662128,0.00015493,2]
[399478092,1766409043816,-151.0,0.00015516,2]
[399478093,1766409043826,-151.0,0.00015516,2]
[399478094,1766409043835,-151.0,0.00015516,2]
[399478095,1766409043848,-151.0,0.00015516,2]
[399478096,1766409043859,-151.0,0.00015516,2]
[399478097,1766409043869,-164.99852237,0.00015516,2]
[399478098,1766409043879,-397.1771,0.00015516,2]
[399478099,1766409043889,-397.1771,0.00015516,2]
[399478100,1766409043900,-397.1771,0.00015516,2]
[399478101,1766409043909,-397.1771,0.00015516,2]
[399478102,1766409043919,-10000.0,0.00015516,2]
[399478103,1766409043929,-942.87374071,0.00015519,2]
[399478104,1766409043939,-5639.7232959,0.00015524,2]
[399478105,1766409043949,-57178.6508106,0.00015524,2]
[399478106,1766409043958,-151.0,0.00015524,2]
[399478107,1766409043968,-197.690307,0.00015524,2]
[399478108,1766409043978,-197.690307,0.00015524,2]
[399478109,1766409043987,-197.690307,0.00015524,2]
[399478110,1766409043997,-197.690307,0.00015524,2]
[399478111,1766409044007,-3966.9773441,0.00015526,2]
[399478112,1766409044016,-531.25264543,0.00015528,2]
[399478113,1766409044026,-207.4,0.00015544,2]
[399478114,1766409044035,-200.0,0.00015545,2]
[399478115,1766409044045,-500.0,0.00015545,2]
[399478116,1766409044055,-200.0,0.00015545,2]
[399478117,1766409044065,-335.41817452,0.00015578,2]
[399478118,1766409044075,-170.7,0.00015616,2]
[399478119,1766409044084,-150.0,0.00015616,2]
[399478120,1766409044094,-554.01,0.00015616,2]
[399478121,1766409044104,-554.01,0.00015616,2]
[399478122,1766409044113,-170.7,0.00015616,2]
[399478123,1766409044123,-150.0,0.00015616,2]
[399478124,1766409044132,-554.01,0.00015616,2]
[399478125,1766409044142,-170.7,0.00015616,2]
[399478127,1766409044151,-150.0,0.00015616,2]
[399478129,1766409044162,-554.01,0.00015616,2]
[399478130,1766409044171,-169.94,0.00015616,2]
[399478132,1766409044181,-219.1,0.00015616,2]
[399478133,1766409044191,-1013.31,0.00015616,2]
[399478134,1766409044200,-166.66,0.00015632,2]
[399478135,1766409044210,-249.45942711,0.00015694,2]
[399478136,1766409044220,-659.33,0.00015753,2]
[399478137,1766409044229,-659.33,0.00015753,2]
[399478138,1766409044238,-659.33,0.00015753,2]
[399478139,1766409044248,-659.33,0.00015753,2]
[399478140,1766409044257,-659.33,0.00015753,2]
[399478141,1766409044266,-1318.66,0.00015753,2]
[399478142,1766409044278,-659.33,0.00015753,2]
[399478143,1766409044287,-659.33,0.00015753,2]
[399478144,1766409044296,-670.0,0.00015753,2]
[399478145,1766409044306,-659.33,0.00015753,2]
[399478146,1766409044315,-659.33,0.00015753,2]
[399478147,1766409044325,-366.75,0.00015753,2]
[399478148,1766409044334,-612.0,0.00015774,2]
[399478149,1766409044344,-1326.0,0.00015774,2]
[399478150,1766409044354,-3457.0,0.00015774,2]
[399478151,1766409044363,-1609.0,0.00015774,2]
[399478152,1766409044372,-518.0,0.00015774,2]
[399478153,1766409044382,-564.0,0.00015774,2]
[399478154,1766409044391,-2429.0,0.00015774,2]
[399478155,1766409044400,-1198.0,0.00015774,2]
[399478156,1766409044410,-282.55,0.00015818,2]
[399478157,1766409044420,-150.1,0.00015873,2]
[399478158,1766409044430,-7000.0,0.0001591,2]
[399478159,1766409044440,-1258.3923622,0.00015916,2]
[399478160,1766409044451,-12758.2815124,0.00015916,2]
[399478161,1766409044461,-225.18697532,0.00015923,2]
[399478162,1766409044470,-225.18697532,0.00015923,2]
[399478163,1766409044482,-617.40005154,0.00015923,2]
[399478164,1766409044491,-151.0,0.00015923,2]
[399478165,1766409044500,-179.52,0.00015959,2]
[399478166,1766409044510,-9434.27662128,0.00015962,2]
[399478167,1766409044521,-3966.9773441,0.00015984,2]
[399478168,1766409044531,-152.325413,0.0001599,2]
[399478169,1766409044540,-215.50049,0.0001599,2]
[399478170,1766409044551,-215.50049,0.0001599,2]
[399478171,1766409044560,-215.50049,0.0001599,2]
[399478172,1766409044569,-215.50049,0.0001599,2]
[399478173,1766409044578,-151.0,0.00016007,2]
[399478174,1766409044588,-188.35,0.00016018,2]
[399478175,1766409044597,-2520.97,0.00016046,2]
[399478176,1766409044607,-2520.97,0.00016046,2]
[399478178,1766409044616,-2520.97,0.00016046,2]
[399478179,1766409044625,-2520.97,0.00016046,2]
[399478180,1766409044634,-153.149163,0.00016046,2]
[399478181,1766409044643,-166.29,0.00016071,2]
[399478182,1766409044652,-200.0,0.00016093,2]
[399478183,1766409044662,-500.0,0.00016093,2]
[399478185,1766409044671,-200.0,0.00016093,2]
[399478186,1766409044681,-832.0,0.00016129,2]
[399478187,1766409044691,-150.0,0.00016133,2]
[399478188,1766409044703,-832.0,0.00016161,2]
[399478189,1766409044713,-285.46,0.00016185,2]
[399478190,1766409044722,-150.30615582,0.00016194,5]
[399478191,1766409044732,-168.0,0.00016295,2]
[399478192,1766409044744,-249.45942711,0.00016297,2]
[399478193,1766409044753,-942.87374071,0.00016332,2]
[399478194,1766409044764,-200.0,0.0001634,2]
[399478195,1766409044774,-228.0,0.000164,2]
[399478196,1766409044784,-319.0,0.000164,2]
[399478197,1766409044793,-182.0,0.000164,2]
[399478198,1766409044803,-183.8888322,0.000164,2]
[399478199,1766409044812,-7000.0,0.0001641,2]
[399478200,1766409044822,-9434.27662128,0.00016431,2]
[399478201,1766409044831,-511.62107373,0.00016437,2]
[399478202,1766409044841,-151.0,0.00016438,2]
[399478203,1766409044850,-151.0,0.00016438,2]
[399478204,1766409044859,-151.0,0.00016438,2]
[399478205,1766409044869,-151.0,0.00016438,2]
[399478206,1766409044878,-151.0,0.00016438,2]
[399478207,1766409044888,-151.0,0.00016438,2]